bitfinex-derivatives/quotes_SOLF0:USTF0_20250703
["timestamp","ask_amount","ask_price","bid_price","bid_amount"]
[1751535973964,8.1755555,156.07,155.94,2.1415]
[1751535974167,3.6091555,156.05,155.99,3.6091555]
[1751535974767,10.0154555,156.05,155.99,3.6091555]
[1751535974967,3.6091555,156.03,155.96,3.6091555]
[1751535975162,3.6091555,156.01,155.95,3.6091555]
[1751535975368,3.6091555,156.01,155.98,6.4085]
[1751535975772,3.6091555,156.01,155.94,2.1415]
[1751535975971,3.6091555,156.01,155.98,6.4086]
[1751535977072,3.6091555,156.01,155.99,6.4085]
[1751535977877,6.4076,156.02,155.99,6.4085]
[1751535978476,11.83028617,156.03,155.99,6.4085]
[1751535978870,6.407,156.03,155.99,6.4085]
[1751535979071,5.42328617,156.06,155.98,5.42328617]
[1751535979567,6.4066,156.04,155.98,5.42328617]
[1751535980471,9.98968617,156.07,155.98,5.42328617]
[1751535980775,4.5664,156.07,156.0,5.42328617]
[1751535980973,2.3299,156.08,156.0,5.42328617]
[1751535981473,8.735,156.08,156.05,6.4058]
[1751535981968,6.4052,156.07,156.04,6.4062]
[1751535982273,2.3299,156.08,156.0,5.42328617]
[1751535982473,2.3299,156.08,156.05,6.4057]
[1751535983066,8.7347,156.08,156.02,5.42328617]
[1751535983462,2.3299,156.08,156.02,5.42328617]
[1751535984169,2.3299,156.08,156.05,6.4058]
[1751535984973,8.735,156.08,156.05,6.4058]
[1751535985173,2.3299,156.08,156.04,6.4064]
[1751535985369,2.3299,156.08,156.01,5.42328617]
[1751535985870,8.735,156.08,156.01,5.42328617]
[1751535986075,8.735,156.08,156.05,6.4058]
[1751535986272,2.3299,156.08,156.01,5.42328617]
[1751535987075,2.3299,156.08,156.05,6.4059]
[1751535987375,8.7347,156.08,156.05,6.4059]
[1751535988976,6.4052,156.07,156.04,6.4063]
[1751535990474,5.42328617,156.06,155.99,5.42328617]
[1751535990671,5.42328617,156.06,155.94,14.9624]
[1751535990672,5.42328617,156.04,155.95,5.42328617]
[1751535990875,5.42328617,156.04,155.94,2.1415]
[1751535990876,6.4079,156.01,155.94,2.1415]
[1751535991077,5.42328617,156.02,155.97,6.409]
[1751535991482,6.4079,156.01,155.94,2.1415]
[1751535991678,5.42328617,156.02,155.94,2.1415]
[1751535992074,5.42328617,156.02,155.96,6.4095]
[1751535992282,5.42328617,156.0,155.96,6.4095]
[1751535992486,6.4089,155.98,155.95,6.4099]
[1751535993181,6.4089,155.98,155.94,6.4104]
[1751535993182,6.4094,155.97,155.94,6.4104]
[1751535996785,6.4094,155.97,155.93,6.4108]
[1751535996985,5.42328617,155.98,155.89,7.72808617]
[1751535997386,6.4095,155.97,155.89,7.72808617]
[1751535997883,6.4104,155.95,155.92,6.4111]
[1751535998287,5.42328617,155.96,155.92,6.4111]
[1751535998489,6.4102,155.95,155.92,6.4111]
[1751535999280,6.4106,155.94,155.91,6.4117]
[1751535999886,6.4103,155.95,155.91,6.4117]
[1751536001487,5.42328617,155.94,155.87,5.42328617]
[1751536002193,11.83398617,155.94,155.87,5.42328617]
[1751536003090,11.83398617,155.94,155.86,4.3328]
[1751536003296,6.411,155.93,155.86,9.75608617]
[1751536003493,6.411,155.93,155.9,6.4121]
[1751536003792,10.02991879,155.94,155.87,3.61921879]
[1751536004298,3.61921879,155.94,155.87,3.61921879]
[1751536004497,10.02981879,155.94,155.87,3.61921879]
[1751536004690,2.2738,155.99,155.87,3.61921879]
[1751536004995,3.61921879,155.93,155.87,3.61921879]
[1751536005192,3.61921879,155.93,155.9,6.4118]
[1751536005391,3.61921879,155.93,155.87,3.61921879]
[1751536006394,3.61921879,155.93,155.91,6.4115]
[1751536006589,3.61921879,155.95,155.87,3.61921879]
[1751536006996,3.61921879,155.95,155.91,6.4114]
[1751536007193,10.02931879,155.95,155.91,6.4114]
[1751536007600,10.02931879,155.95,155.92,6.4113]
[1751536008094,3.61921879,155.95,155.87,3.61921879]
[1751536008296,2.1378,155.98,155.84,3.61921879]
[1751536008297,2.1378,155.98,155.93,3.61921879]
[1751536008498,2.2738,155.99,155.93,3.61921879]
[1751536008701,2.2738,155.99,155.87,12.8263]
[1751536008900,3.61921879,155.98,155.91,3.61921879]
[1751536009797,6.4093,155.97,155.94,6.4103]
[1751536010094,7.70002455,155.99,155.9,5.42622455]
[1751536010901,7.70782455,156.01,155.92,5.42622455]
[1751536011094,2.2816,156.01,155.99,6.4084]
[1751536011292,2.2816,156.01,155.94,5.42622455]
[1751536011497,7.66352455,156.04,155.96,5.42622455]
[1751536011691,14.07022455,156.04,155.96,5.42622455]
[1751536011994,8.644,156.04,155.96,5.42622455]
[1751536012203,2.2373,156.04,155.96,5.42622455]
[1751536012392,2.3304,156.07,155.98,5.42622455]
[1751536012800,6.4058,156.06,156.03,6.4067]
[1751536013597,6.406,156.05,156.03,6.4067]
[1751536014299,6.4068,156.04,155.98,5.42622455]
[1751536014499,6.4068,156.04,155.96,5.42622455]
[1751536015703,11.83302455,156.04,155.95,12.05812455]
[1751536016299,11.83302455,156.04,156.01,6.4074]
[1751536019606,5.42622455,156.04,156.02,6.4072]
[1751536019807,5.42622455,156.04,155.95,12.05812455]
[1751536020008,5.42622455,156.04,155.97,5.42622455]
[1751536020207,11.83282455,156.04,156.01,6.4074]
[1751536020403,5.42622455,156.04,156.01,6.4074]
[1751536020604,2.3304,156.07,156.01,6.4074]
[1751536020905,5.42622455,156.05,156.01,6.4074]
[1751536021602,5.42622455,156.03,155.95,12.05812455]
[1751536021808,6.4077,156.01,155.95,6.6319]
[1751536023608,5.42622455,156.03,155.95,12.05812455]
[1751536024108,6.4073,156.02,155.99,6.4083]
[1751536024810,6.4076,156.01,155.98,6.4086]
[1751536025805,6.4081,156.0,155.97,6.4091]
[1751536026205,5.42622455,156.01,155.92,5.42622455]
[1751536026407,6.4087,155.99,155.96,6.4096]
[1751536027102,5.42622455,155.99,155.86,7.8677608]
[1751536027310,5.42622455,155.99,155.89,5.42622455]
[1751536027506,6.4097,155.97,155.93,6.4108]
[1751536027705,5.42622455,155.99,155.93,6.4108]
[1751536027905,5.42622455,155.95,155.88,4.4018]
[1751536028104,5.42622455,155.95,155.86,2.1813]
[1751536028407,5.42622455,155.96,155.87,5.42622455]
[1751536028603,6.4088,155.99,155.96,6.4094]
[1751536028904,8.14919596,156.03,155.88,5.42622455]
[1751536029106,6.4074,156.02,155.99,6.4081]
[1751536029311,10.39119596,156.05,155.96,5.42622455]
[1751536029708,4.4352,156.05,155.96,5.42622455]
[1751536029910,4.4352,156.05,155.98,5.42622455]
[1751536030109,4.4352,156.05,156.0,6.4077]
[1751536030313,4.4352,156.05,155.98,5.42622455]
[1751536030511,7.69752455,156.08,155.98,5.42622455]
[1751536030813,7.69752455,156.08,156.01,6.4076]
[1751536031208,7.69752455,156.08,155.98,5.42622455]
[1751536031610,7.69752455,156.08,156.01,6.4074]
[1751536031911,7.69752455,156.08,155.98,5.42622455]
[1751536032108,6.4056,156.06,156.03,6.4066]
[1751536034019,2.2713,156.08,155.99,5.42622455]
[1751536034211,5.42622455,156.09,156.01,5.42622455]
[1751536034614,6.405,156.08,156.04,6.4062]
[1751536035316,6.4044,156.09,156.01,5.42622455]
[1751536035520,10.02172455,156.1,156.01,5.42622455]
[1751536035719,6.4052,156.07,155.99,2.2537]
[1751536036015,10.02172455,156.1,155.99,2.2537]
[1751536036016,5.42622455,156.08,156.0,5.42622455]
[1751536036211,5.42622455,156.08,156.03,6.4066]
[1751536036406,5.42622455,156.08,156.0,5.42622455]
[1751536037211,5.42622455,156.09,156.0,5.42622455]
[1751536037414,6.4059,156.06,156.02,6.407]
[1751536037914,5.42622455,156.09,156.0,5.42622455]
[1751536038512,5.42622455,156.09,156.04,6.4063]
[1751536039221,6.405,156.08,156.04,6.4063]
[1751536039427,5.42622455,156.09,156.04,6.4063]
[1751536039619,5.42622455,156.09,156.03,6.4066]
[1751536040418,6.4054,156.07,156.03,6.4066]
[1751536040921,6.4054,156.07,156.04,6.4064]
[1751536042021,6.4049,156.08,156.04,6.4064]
[1751536042522,6.4049,156.08,156.05,6.406]
[1751536043120,4.5955,156.1,156.06,6.4056]
[1751536043421,4.5955,156.1,156.0,3.6124563]
[1751536043422,5.9634563,156.12,156.0,3.6124563]
[1751536043718,5.9634563,156.12,156.05,3.6124563]
[1751536044019,6.4042,156.1,156.06,6.4052]
[1751536044424,4.5236,156.13,156.05,5.41690774]
[1751536044920,6.4034,156.12,156.08,6.4045]
[1751536045109,4.5236,156.13,156.05,5.41690774]
[1751536045515,4.5236,156.13,156.08,6.4047]
[1751536045712,4.5236,156.13,156.07,5.41690774]
[1751536046017,6.4025,156.14,156.1,6.4037]
[1751536046215,5.41690774,156.17,156.07,5.41690774]
[1751536046417,5.41690774,156.17,155.99,12.3545608]
[1751536046722,6.402,156.15,156.11,6.4034]
[1751536047419,2.2557,156.18,156.09,5.41690774]
[1751536047817,5.41690774,156.2,156.13,6.4025]
[1751536048017,5.41690774,156.2,156.11,5.41690774]
[1751536048517,1.1147415,156.21,156.11,5.41690774]
[1751536048816,5.41690774,156.2,156.11,5.41690774]
[1751536049320,6.4009,156.18,156.14,6.4021]
[1751536049817,6.4004,156.19,156.15,6.4019]
[1751536050115,6.4004,156.19,156.07,2.3109]
[1751536050116,12.09840774,156.22,156.14,5.41690774]
[1751536050315,6.4,156.2,156.16,6.4012]
[1751536050512,12.09840774,156.22,156.13,5.41690774]
[1751536051117,6.4006,156.19,156.15,6.4019]
[1751536051316,12.09840774,156.22,156.09,5.41690774]
[1751536051317,5.41690774,156.18,156.09,5.41690774]
[1751536051621,11.81760774,156.18,156.11,5.41690774]
[1751536052023,6.6815,156.22,156.11,5.41690774]
[1751536052223,5.41690774,156.2,156.07,2.3109]
[1751536052421,5.41690774,156.2,156.11,5.41690774]
[1751536052816,6.4012,156.17,156.13,6.4025]
[1751536054325,5.41690774,156.18,156.07,2.3109]
[1751536054527,5.41690774,156.14,156.07,2.3109]
[1751536054830,11.82030774,156.12,156.08,6.4045]
[1751536055025,5.41690774,156.12,156.08,6.4045]
[1751536055221,5.41690774,156.1,156.04,2.2171]
[1751536055421,11.82110774,156.1,156.06,6.4054]
[1751536055825,6.4045,156.09,156.05,6.4058]
[1751536056028,6.4045,156.09,156.03,2.3333]
[1751536056432,6.4045,156.09,156.05,6.4056]
[1751536056626,11.82100774,156.1,156.03,2.3333]
[1751536056929,6.4041,156.1,156.06,6.4054]
[1751536057125,6.4037,156.11,156.03,2.3333]
[1751536057428,6.4037,156.11,156.08,6.4047]
[1751536057729,6.4035,156.12,156.08,6.4047]
[1751536058231,6.4036,156.11,156.08,6.4047]
[1751536059631,6.4036,156.11,156.07,6.4051]
[1751536059831,6.404,156.1,156.07,6.4051]
[1751536060431,5.41690774,156.12,156.04,5.41690774]
[1751536060629,6.6342,156.14,156.03,2.3333]
[1751536060829,5.20685298,156.13,156.03,6.4066]
[1751536061133,5.41690774,156.13,156.04,5.41690774]
[1751536061533,6.6342,156.14,156.06,6.4056]
[1751536061732,5.41690774,156.13,156.04,5.41690774]
[1751536062234,6.4042,156.1,156.06,6.4055]
[1751536062429,5.41690774,156.13,156.06,6.4055]
[1751536062630,5.41690774,156.13,156.05,6.4059]
[1751536062831,5.41690774,156.11,156.02,5.41690774]
[1751536063130,6.4045,156.09,156.05,6.4059]
[1751536063326,6.4045,156.09,156.02,5.41690774]
[1751536063835,6.4045,156.09,156.06,6.4056]
[1751536064035,6.4041,156.1,156.06,6.4056]
[1751536064335,12.05110774,156.14,156.07,6.4051]
[1751536064529,6.4038,156.11,156.07,6.4051]
[1751536064928,6.4038,156.11,156.08,6.4048]
[1751536065129,6.4032,156.12,156.04,5.41690774]
[1751536065327,5.41690774,156.09,155.98,2.1865]
[1751536065533,5.41690774,156.05,155.94,12.17960582]
[1751536065733,5.41690774,156.05,155.95,5.41690774]
[1751536066033,5.41690774,156.05,155.94,4.3435]
[1751536066034,5.41690774,156.03,155.94,9.76040774]
[1751536066429,19.22,156.11,155.96,5.41690774]
[1751536066633,5.41690774,156.06,155.96,5.41690774]
[1751536067324,5.41690774,156.06,155.97,5.41690774]
[1751536067523,6.4067,156.04,155.99,6.4082]
[1751536067834,5.41690774,156.07,155.97,5.41690774]
[1751536068134,6.6342,156.14,155.94,4.3435]
[1751536068135,5.41690774,156.1,156.03,6.4067]
[1751536068328,5.41690774,156.1,156.01,5.41690774]
[1751536068539,6.4052,156.07,156.02,6.4069]
[1751536068738,6.4052,156.07,156.01,5.41690774]
[1751536068739,5.41690774,156.1,156.01,5.41690774]
[1751536068939,5.41690774,156.12,156.03,5.41690774]
[1751536069241,5.41690774,156.1,156.01,5.41690774]
[1751536070047,12.56710534,156.14,156.04,6.4064]
[1751536070344,5.41690774,156.11,156.04,6.4064]
[1751536070544,6.4047,156.09,156.04,6.4064]
[1751536070746,5.41690774,156.11,156.04,6.4064]
[1751536070934,5.49138198,156.1,156.04,6.4064]
[1751536071340,6.4048,156.08,156.04,6.4064]
[1751536073544,5.41690774,156.11,156.01,5.41690774]
[1751536073746,5.49295908,156.1,156.01,5.41690774]
[1751536074046,6.405,156.08,156.03,6.4064]
[1751536074242,5.41690774,156.11,156.01,5.41690774]
[1751536074444,5.41690774,156.07,155.99,5.41690774]
[1751536074645,5.41690774,156.05,155.97,5.41690774]
[1751536074947,5.41690774,156.03,155.95,5.41690774]
[1751536075244,6.4079,156.01,155.97,6.409]
[1751536075747,5.41690774,156.01,155.93,7.74680774]
[1751536076244,6.4097,155.96,155.91,5.41690774]
[1751536076741,6.4097,155.96,155.93,6.4107]
[1751536076945,6.4094,155.97,155.93,6.4107]
[1751536078042,6.4094,155.97,155.91,5.41690774]
[1751536078342,4.4772,155.99,155.93,5.41690774]
[1751536078543,8.13970534,156.04,155.75,355.0]
[1751536078745,8.13970534,156.04,155.83,6.7128]
[1751536078746,2.1283,156.02,155.83,6.7128]
[1751536079045,2.1283,156.02,155.84,5.41690774]
[1751536079046,5.41690774,155.97,155.84,5.41690774]
[1751536079241,5.41690774,155.93,155.83,6.7128]
[1751536079446,5.41690774,155.93,155.83,12.12970774]
[1751536079447,6.4125,155.9,155.83,12.12970774]
[1751536079742,5.41690774,155.91,155.83,6.7128]
[1751536080140,5.41690774,155.91,155.84,6.4146]
[1751536080347,5.41690774,155.91,155.83,6.7128]
[1751536080539,6.4133,155.88,155.83,6.7128]
[1751536080742,5.41690774,155.94,155.85,5.41690774]
[1751536080943,6.412,155.91,155.85,5.41690774]
[1751536081144,5.41690774,155.94,155.85,5.41690774]
[1751536081340,5.41690774,155.94,155.87,6.4131]
[1751536081543,2.1283,155.95,155.85,5.41690774]
[1751536081747,2.1283,155.95,155.87,5.41690774]
[1751536082145,2.1283,155.95,155.83,6.7128]
[1751536082351,4.5557,155.96,155.9,6.4121]
[1751536082839,4.5557,155.96,155.88,5.41690774]
[1751536083041,4.5557,155.96,155.91,6.4117]
[1751536083238,5.41690774,155.98,155.88,5.41690774]
[1751536083448,5.41690774,155.94,155.86,5.41690774]
[1751536083642,5.41690774,155.9,155.83,4.4353]
[1751536083949,5.41690774,155.88,155.79,7.63600774]
[1751536084354,6.4137,155.87,155.79,7.63600774]
[1751536084550,5.41690774,155.88,155.79,7.63600774]
[1751536084753,6.4136,155.87,155.79,7.63600774]
[1751536084953,5.41690774,155.86,155.76,5.41690774]
[1751536085252,5.41690774,155.88,155.78,5.41690774]
[1751536085445,11.83000774,155.88,155.78,5.41690774]
[1751536085650,5.41690774,155.89,155.8,5.41690774]
[1751536086047,5.41690774,155.87,155.78,5.41690774]
[1751536087056,5.41690774,155.87,155.83,6.4148]
[1751536087245,5.41690774,155.87,155.78,5.41690774]
[1751536087749,5.41690774,155.87,155.83,6.4147]
[1751536088555,11.83010774,155.88,155.78,5.41690774]
[1751536088854,6.4134,155.87,155.78,5.41690774]
[1751536089055,5.41690774,155.88,155.78,5.41690774]
[1751536089250,5.41690774,155.86,155.78,5.41690774]
[1751536089657,11.83100774,155.86,155.78,5.41690774]
[1751536090351,6.4143,155.85,155.81,6.4155]
[1751536090654,5.41690774,155.85,155.77,5.41690774]
[1751536090859,11.83120774,155.85,155.81,6.4159]
[1751536091153,5.41690774,155.87,155.77,5.41690774]
[1751536091354,6.4143,155.85,155.8,6.4163]
[1751536091750,11.83120774,155.85,155.8,6.4163]
[1751536092048,6.9027,155.86,155.75,6.6341]
[1751536092049,5.41690774,155.83,155.75,6.6341]
[1751536092254,5.41690774,155.83,155.75,4.4645]
[1751536092449,11.83200774,155.83,155.78,6.4167]
[1751536092651,5.41690774,155.83,155.73,5.41690774]
[1751536093051,5.41690774,155.81,155.73,5.41690774]
[1751536093254,5.41690774,155.81,155.72,5.41690774]
[1751536093452,11.83300774,155.81,155.76,6.4177]
[1751536093654,6.9027,155.86,155.71,2.2397]
[1751536093854,5.41690774,155.8,155.71,7.65660774]
[1751536094552,5.41690774,155.8,155.71,2.2397]
[1751536094756,5.41690774,155.78,155.7,4.5862]
[1751536095148,5.41690774,155.76,155.67,5.41690774]
[1751536095348,5.41690774,155.76,155.65,2.2397]
[1751536095556,5.41690774,155.76,155.66,5.41690774]
[1751536095858,11.83520774,155.76,155.71,6.4197]
[1751536096058,5.41690774,155.74,155.65,2.2397]
[1751536096256,5.41690774,155.72,155.48,32.1457]
[1751536096456,5.41690774,155.7,155.61,5.41690774]
[1751536096657,5.41690774,155.7,155.6,1.11774908]
[1751536096658,5.41690774,155.7,155.66,6.4218]
[1751536097153,6.42,155.71,155.66,6.4219]
[1751536097348,5.41690774,155.71,155.6,2.1457]
[1751536097860,5.41690774,155.71,155.63,5.41690774]
[1751536098063,5.41690774,155.71,155.62,5.41690774]
[1751536098361,11.83690774,155.71,155.62,5.41690774]
[1751536098656,5.41690774,155.71,155.62,5.41690774]
[1751536098862,11.83710774,155.71,155.66,6.422]
[1751536099759,2.1821,155.78,155.64,5.41690774]
[1751536099952,5.41690774,155.76,155.67,5.41690774]
[1751536100160,5.41690774,155.76,155.7,6.42]
[1751536100358,5.41690774,155.76,155.67,5.41690774]
[1751536100558,5.41690774,155.74,155.69,6.4206]
[1751536100760,11.83580774,155.74,155.65,5.41690774]
[1751536101160,5.41690774,155.74,155.65,5.41690774]
[1751536101358,2.1821,155.78,155.65,5.41690774]
[1751536101555,2.1821,155.78,155.6,2.1457]
[1751536101556,5.41690774,155.68,155.44,19.2929]
[1751536101757,5.41690774,155.66,155.57,5.41690774]
[1751536101958,5.41690774,155.68,155.53,6.7001]
[1751536102261,5.41690774,155.68,155.59,5.41690774]
[1751536102460,5.41690774,155.68,155.53,6.7001]
[1751536102765,5.41690774,155.68,155.6,6.4242]
[1751536102960,8.04450382,155.78,155.54,1.11828786]
[1751536102961,6.4225,155.65,155.54,1.11828786]
[1751536103262,5.41690774,155.66,155.54,1.11828786]
[1751536103463,5.41690774,155.64,155.54,5.41690774]
[1751536103652,5.41690774,155.62,155.53,12.11700774]
[1751536103855,7.53810774,155.65,155.53,6.7001]
[1751536104056,5.41690774,155.59,155.5,5.41690774]
[1751536104460,11.84190774,155.59,155.53,6.4274]
[1751536104654,5.41690774,155.59,155.5,5.41690774]
[1751536105056,6.4254,155.58,155.52,6.4275]
[1751536105363,5.41690774,155.59,155.45,6.8018]
[1751536105566,6.4265,155.56,155.47,5.41690774]
[1751536105766,5.41690774,155.55,155.47,5.41690774]
[1751536105964,6.4271,155.54,155.49,6.429]
[1751536106165,5.41690774,155.55,155.49,6.429]
[1751536106365,5.41690774,155.55,155.47,5.41690774]
[1751536106567,5.41690774,155.53,155.47,6.4299]
[1751536106765,5.41690774,155.53,155.34,5.17395019]
[1751536107069,2.3197,155.57,155.45,6.4304]
[1751536107070,6.4287,155.5,155.45,6.4304]
[1751536107261,2.3197,155.57,155.39,1.11931297]
[1751536107459,2.3197,155.57,155.43,5.41690774]
[1751536107661,5.41690774,155.52,155.43,5.41690774]
[1751536107862,5.41690774,155.55,155.45,5.41690774]
[1751536108062,5.41690774,155.55,155.39,1.11931297]
[1751536108262,2.3197,155.57,155.45,5.41690774]
[1751536108465,2.3197,155.57,155.39,1.11931297]
[1751536108762,5.41690774,155.54,155.45,5.41690774]
[1751536108968,5.41690774,155.54,155.39,1.11931297]
[1751536109266,5.41690774,155.5,155.41,5.41690774]
[1751536109858,11.84670774,155.48,155.42,6.4316]
[1751536110058,2.3197,155.57,155.4,5.41690774]
[1751536110268,5.41690774,155.5,155.42,5.41690774]
[1751536110465,5.41690774,155.52,155.42,5.41690774]
[1751536110969,5.41690774,155.53,155.44,5.41690774]
[1751536111157,5.41690774,155.55,155.46,5.41690774]
[1751536111663,5.41690774,155.55,155.36,1.11965509]
[1751536111867,6.427,155.54,155.45,5.41690774]
[1751536112162,5.41690774,155.55,155.36,1.11965509]
[1751536112364,6.4281,155.52,155.47,6.4296]
[1751536112666,5.41690774,155.53,155.44,5.41690774]
[1751536113358,2.3197,155.57,155.36,1.11965509]
[1751536113359,6.4272,155.54,155.37,12.8678]
[1751536113563,5.41690774,155.55,155.49,6.4288]
[1751536114569,6.4272,155.54,155.49,6.4288]
[1751536114767,5.41690774,155.55,155.5,6.4286]
[1751536114962,2.3197,155.57,155.47,5.41690774]
[1751536115167,6.4266,155.55,155.47,5.41690774]
[1751536115569,6.4266,155.55,155.5,6.4283]
[1751536115970,6.4266,155.55,155.47,5.41690774]
[1751536116268,7.73660774,155.57,155.47,5.41690774]
[1751536116269,6.427,155.54,155.47,5.41690774]
[1751536116666,7.73660774,155.57,155.49,6.4288]
[1751536116867,5.41690774,155.55,155.45,5.41690774]
[1751536117167,5.41690774,155.54,155.45,5.41690774]
[1751536117365,5.41690774,155.55,155.49,6.4288]
[1751536117760,5.41690774,155.55,155.45,5.41690774]
[1751536117967,6.4276,155.53,155.45,5.41690774]
[1751536118571,5.41690774,155.56,155.47,5.41690774]
[1751536119474,5.41690774,155.56,155.5,6.4284]
[1751536119967,5.41690774,155.56,155.49,6.4289]
[1751536120169,5.41690774,155.54,155.46,5.41690774]
[1751536120473,6.4277,155.53,155.49,6.4288]
[1751536121172,6.4277,155.53,155.44,6.8851]
[1751536121173,5.41690774,155.56,155.48,5.41690774]
[1751536121566,6.4277,155.53,155.49,6.4288]
[1751536121768,5.41690774,155.54,155.46,5.41690774]
[1751536122178,5.41690774,155.5,155.42,5.41690774]
[1751536122378,5.41690774,155.5,155.37,6.7948]
[1751536122572,6.4306,155.46,155.4,5.41690774]
[1751536123272,6.6693,155.49,155.4,5.41690774]
[1751536123777,6.4298,155.48,155.4,5.41690774]
[1751536123982,6.6693,155.49,155.4,5.41690774]
[1751536124370,6.6693,155.49,155.42,5.41690774]
[1751536124566,6.6693,155.49,155.37,6.7948]
[1751536124769,6.6693,155.49,155.42,5.41690774]
[1751536124976,6.4297,155.48,155.44,6.4309]
[1751536125383,6.4299,155.47,155.43,6.4315]
[1751536125576,6.6693,155.49,155.42,5.41690774]
[1751536125874,6.6693,155.49,155.39,5.41690774]
[1751536125875,5.41690774,155.48,155.39,5.41690774]
[1751536126078,5.41690774,155.48,155.34,10.59085793]
[1751536126377,5.41690774,155.48,155.39,5.41690774]
[1751536126575,6.6693,155.49,155.34,17.23635793]
[1751536126576,5.41690774,155.46,155.37,5.41690774]
[1751536126774,5.41690774,155.46,155.34,11.81945019]
[1751536126978,6.4324,155.41,155.37,6.4338]
[1751536127279,5.41690774,155.44,155.35,5.41690774]
[1751536127972,6.4326,155.41,155.37,6.4338]
[1751536128175,6.4326,155.41,155.35,5.41690774]
[1751536128376,5.41690774,155.45,155.35,5.41690774]
[1751536128574,6.6693,155.49,155.39,5.41690774]
[1751536128774,6.6693,155.49,155.41,5.41690774]
[1751536128978,6.4301,155.47,155.43,6.4313]
[1751536129172,6.6693,155.49,155.43,6.4313]
[1751536129378,6.6693,155.49,155.4,5.41690774]
[1751536129768,6.4297,155.48,155.43,6.4312]
[1751536130379,6.6693,155.49,155.42,5.41690774]
[1751536130879,13.0984,155.49,155.45,6.4304]
[1751536131080,6.6693,155.49,155.42,5.41690774]
[1751536131479,6.6693,155.49,155.46,6.4302]
[1751536131676,6.6693,155.49,155.42,5.41690774]
[1751536132876,12.08620774,155.49,155.36,12.8689]
[1751536133081,12.08620774,155.49,155.4,5.41690774]
[1751536133282,12.08620774,155.49,155.43,6.4314]
[1751536133482,19.22,155.55,155.4,5.41690774]
[1751536133782,6.4296,155.48,155.44,6.4309]
[1751536135083,5.41690774,155.48,155.39,5.41690774]
[1751536136685,11.84660774,155.48,155.44,6.4311]
[1751536137082,5.41690774,155.5,155.41,5.41690774]
[1751536137982,6.4297,155.48,155.41,5.41690774]
[1751536138584,6.4297,155.48,155.45,6.4306]
[1751536139383,5.41690774,155.52,155.34,9.53765019]
[1751536139690,5.41690774,155.44,155.35,5.41690774]
[1751536140394,6.4318,155.43,155.38,6.4333]
[1751536140701,2.2717,155.47,155.34,14.95455793]
[1751536140897,2.2717,155.47,155.34,9.53765019]
[1751536141201,2.2717,155.47,155.4,5.41690774]
[1751536141499,2.2125,155.51,155.44,5.41690774]
[1751536141991,4.6429,155.55,155.46,5.41690774]
[1751536142299,5.41690774,155.54,155.34,9.53765019]
[1751536142494,5.41690774,155.52,155.36,12.8683]
[1751536142899,5.41690774,155.5,155.41,5.41690774]
[1751536143099,6.4294,155.49,155.44,6.4308]
[1751536143299,5.41690774,155.5,155.41,5.41690774]
[1751536143696,5.41690774,155.48,155.34,9.53765019]
[1751536143902,5.41690774,155.46,155.37,5.41690774]
[1751536144202,5.41690774,155.44,155.35,5.41690774]
[1751536144402,2.1493,155.51,155.35,5.41690774]
[1751536144597,5.41690774,155.44,155.37,6.434]
[1751536144899,5.41690774,155.44,155.34,9.53765019]
[1751536145103,5.41690774,155.44,155.34,14.95455793]
[1751536145296,5.41690774,155.41,155.34,5.17395019]
[1751536145499,5.41690774,155.37,155.34,5.17395019]
[1751536145705,6.4354,155.34,155.29,6.4373]
[1751536145892,5.41690774,155.35,155.27,2.1656]
[1751536146095,2.3436,155.42,155.27,2.1656]
[1751536146294,5.41690774,155.35,155.27,2.1656]
[1751536146494,2.3436,155.42,155.26,2.2225]
[1751536146806,6.4361,155.33,155.27,6.4381]
[1751536147000,2.3436,155.42,155.27,6.4381]
[1751536147299,2.3436,155.42,155.26,6.4382]
[1751536147489,5.41690774,155.32,155.23,7.78161626]
[1751536147692,5.41690774,155.32,155.22,7.78161626]
[1751536147899,11.85330774,155.32,155.24,5.41690774]
[1751536148094,5.41690774,155.32,155.24,5.41690774]
[1751536148296,11.85290774,155.33,155.27,6.4378]
[1751536148491,2.3436,155.42,155.26,5.41690774]
[1751536148700,5.41690774,155.36,155.28,5.41690774]
[1751536148901,11.85140774,155.36,155.28,5.41690774]
[1751536149091,5.41690774,155.38,155.28,5.41690774]
[1751536149292,5.41690774,155.38,155.29,5.41690774]
[1751536149493,5.41690774,155.38,155.31,6.4362]